[Event "SixDays Budapest January-IMB 2023"]
[Site "Budapest"]
[Date "2023.01.25"]
[Round "4.5"]
[White "Semprun Martinez, Fernando"]
[Black "Urhegyi, Marton"]
[Result "1/2-1/2"]
[ECO "B38"]
[WhiteElo "2106"]
[BlackElo "2253"]
[Annotator "TA"]
[PlyCount "76"]
[EventDate "2023.01.23"]
[EventType "tourn"]
[EventCountry "HUN"]
[SourceTitle "playchess.com"]
[Source "ChessBase"]
[SourceQuality "1"]
[TimeControl "5400+30"]

{[%evp 17,76,31,64,10,33,29,33,33,34,4,34,-27,64,62,46,41,70,63,103,96,118,29,33,35,29,0,0,-10,-10,-32,-32,-24,-26,-64,-46,-47,-8,-32,-30,-77,-68,-66,-41,-64,-53,-43,-46,-55,-60,-113,-94,-104,-50,-60,-57,-57,0,0,0,-51,0]} 1. e4 {[%emt 0:00:02]} c5 {[%emt 0:06:27]} 2. Nf3 {[%emt 0:00:27]} Nc6 {[%emt 0:00:58]} 3. d4 {[%emt 0:00:15]} cxd4 {[%emt 0:00:07]} 4. Nxd4 {[%emt 0:00:03]} g6 {[%emt 0:00:21]} 5. c4 {[%emt 0:00:29]} Bg7 {[%emt 0:00:37]} 6. Be3 {[%emt 0:00:03]} Nf6 {[%emt 0:01:45]} 7. Nc3 {[%emt 0:00:01]} d6 {[%emt 0:00:28]} 8. f3 {[%emt 0:00:24]} O-O {[%emt 0:00:23]} 9. Qd2 {[%emt 0:00:08]} Bd7 {[%emt 0:01:04]} 10. h4 {[%emt 0:01:26] B38: Sicilian: Maroczy Bind with 5...Bg7 and 7...0-0.} ({White should play} 10. Be2 $14) 10... h5 {[%emt 0:03:38]} 11. O-O-O {[%emt 0:00:52]} a6 {[%emt 0:06:46]} 12. Kb1 {[%emt 0:02:51] [#] White is slightly better.} Ne5 $146 {[%emt 0:19:07]} ({Predecessor:} 12... Nxd4 13. Bxd4 Be6 14. Be3 b5 15. cxb5 axb5 16. Bxb5 Qa5 17. a4 Rfb8 18. Qc2 Nxe4 19. fxe4 Bxc3 20. Qxc3 Rxb5 21. Qxa5 Rbxa5 {½-½ Baldwin del Castillo,R-Sanchez Delgado,L (2053) Collado Villalba op 24th 2007 (3)}) 13. Nd5 {[%emt 0:03:00]} Rc8 {[%emt 0:15:48]} 14. Bh6 {[%emt 0:07:54]} (14. b3 $14) 14... Nxd5 {[%emt 0:02:44]} (14... Nxc4 $11 15. Bxc4 Rxc4 16. Bxg7 Kxg7) 15. Bxg7 {[%emt 0:03:43]} Kxg7 {[%emt 0:01:29]} 16. cxd5 {[%emt 0:00:37]} Rh8 {[%emt 0:12:05]} 17. Be2 {[%emt 0:03:04]} Qb6 {[%emt 0:04:23]} 18. f4 {[%emt 0:03:22]} Ng4 {[%emt 0:03:21] [#] Prevents Qe3.} 19. Bf3 {[%emt 0:05:20]} (19. f5 $1 $16) 19... Rc4 $11 {[%emt 0:07:21]} 20. f5 {[%emt 0:15:03] Threatens to win with Bxg4.} Qb4 $1 {[%emt 0:01:24]} 21. fxg6 {[%emt 0:13:19]} Qxd2 {[%emt 0:01:08]} 22. Rxd2 {[%emt 0:00:01]} fxg6 {[%emt 0:02:30]} 23. Be2 {[%emt 0:02:22]} (23. b3 $5 {[%cal Rb3c4]} Rcc8 24. Bxg4 Bxg4 25. Kb2 $11) 23... Rcc8 {[%emt 0:00:37]} 24. Bxg4 {[%emt 0:03:08]} Bxg4 {[%emt 0:00:13]} 25. Rf1 {[%emt 0:00:54]} Rhf8 {[%emt 0:00:41]} 26. Re1 {[%emt 0:02:05]} Rf4 {[%emt 0:03:51]} 27. g3 {[%emt 0:01:38]} Rf6 {[%emt 0:00:25]} 28. a4 {[%emt 0:00:19]} (28. Rc2 $11) 28... Rcf8 {[%emt 0:00:44] ...Rf1 is the strong threat.} 29. Re3 {[%emt 0:03:51]} Rf1+ {[%emt 0:01:35]} 30. Ka2 {[%emt 0:00:47]} Rc8 {[%emt 0:01:17]} 31. e5 {[%emt 0:04:06]} dxe5 {[%emt 0:00:15]} 32. Rxe5 {[%emt 0:00:00]} Kf6 {[%emt 0:00:17]} 33. Re3 {[%emt 0:01:20]} (33. Re4 $15) 33... Rd8 {[%emt 0:01:22]} 34. Nb3 {[%emt 0:01:13]} Bf3 {[%emt 0:01:01]} (34... Rf5 $17 35. Red3 Re5) 35. Re6+ $15 {[%emt 0:01:13]} Kf7 {[%emt 0:00:22]} 36. Re5 {[%emt 0:00:51]} Kf6 {[%emt 0:00:16]} 37. Re6+ {[%emt 0:00:00]} Kf7 {[%emt 0:00:18]} 38. Re5 {[%emt 0:00:01]} Kf6 {[%emt 0:01:31] Weighted Error Value: White=0.21 (precise) /Black=0.18 (very precise)} (38... Bh1 $15) 1/2-1/2

[Event "SixDays Budapest January-IMB 2023"]
[Site "Budapest"]
[Date "2023.01.25"]
[Round "5.1"]
[White "Urhegyi, Marton"]
[Black "Daroczi, Donat"]
[Result "1/2-1/2"]
[ECO "B72"]
[WhiteElo "2253"]
[BlackElo "2148"]
[Annotator "TA"]
[PlyCount "124"]
[EventDate "2023.01.23"]
[EventType "tourn"]
[EventCountry "HUN"]
[SourceTitle "playchess.com"]
[Source "ChessBase"]
[SourceQuality "1"]
[TimeControl "5400+30"]

{[%evp 10,124,42,54,41,46,59,38,38,40,47,40,49,41,47,0,0,0,0,6,10,8,8,0,0,0,0,7,0,0,7,0,0,0,0,0,0,-13,-4,-6,-14,-29,-21,-18,-20,-34,-21,-35,-20,-27,-31,-32,-10,-31,-20,-53,-16,-18,-18,-35,-34,-53,-60,-172,-169,-164,-159,-152,-144,-143,-70,-367,-365,-316,0,0,0,0,0,0,0,0,0,0,0,0,0,0,0,0,0,0,0,0,0,0,0,0,0,0,0,0,0,0,0,0,0,0,0,0,0,0,0,0,0,0,0]} 1. e4 {[%emt 0:00:53]} c5 {[%emt 0:00:08]} 2. Nf3 {[%emt 0:00:18]} d6 {[%emt 0:00:03]} 3. d4 {[%emt 0:00:07]} cxd4 {[%emt 0:00:06]} 4. Nxd4 {[%emt 0:00:04]} Nf6 {[%emt 0:00:06]} 5. Nc3 {[%emt 0:00:05]} g6 6. Be3 {[%emt 0:00:06]} Nc6 {[%emt 0:01:02] B72: Sicilian Dragon: 6 Be3, lines with h3+Bc4 and sidelines.} 7. f3 {[%emt 0:00:23] Against Ng4} h5 {[%emt 0:00:30]} 8. Qd2 {[%emt 0:01:06]} Nxd4 {[%emt 0:00:09] White is slightly better.} 9. Bxd4 {[%emt 0:01:28]} Bh6 $1 {[%emt 0:00:05]} 10. Qf2 {[%emt 0:04:51]} Qa5 {[%emt 0:11:19]} 11. Bb5+ {[%emt 0:06:26]} Kf8 $1 {[%emt 0:00:31]} ({But not} 11... Bd7 12. Bxd7+ Kxd7 13. Rd1 $16) 12. O-O e5 {[%emt 0:11:58]} 13. Be3 {[%emt 0:11:54]} Bxe3 {[%emt 0:00:06]} 14. Qxe3 {[%emt 0:01:01]} Be6 {[%emt 0:08:35]} 15. Ba4 {[%emt 0:03:39]} Qc5 {[%emt 0:03:10] [#]} 16. Kf2 $146 {[%emt 0:01:33]} ({Predecessor:} 16. Rfe1 a6 17. Bb3 Qxe3+ 18. Rxe3 Bxb3 19. axb3 Rc8 20. Rd3 Ke7 21. Rd2 Rhd8 22. Re1 {1-0 Perez Manas,B (2259)-Martinez Martin,D (2389) ESP-chT CECLUB Div1 2020 (2.3)}) 16... Qxe3+ {[%emt 0:10:21]} 17. Kxe3 {[%emt 0:00:05]} d5 {[%emt 0:00:15]} 18. exd5 {[%emt 0:00:43]} Nxd5+ {[%emt 0:00:08]} 19. Nxd5 {[%emt 0:01:47]} Bxd5 {[%emt 0:00:06]} 20. Rfd1 {[%emt 0:10:02]} Be6 {[%emt 0:00:28]} 21. Bd7 {[%emt 0:02:26]} Ke7 {[%emt 0:01:44]} 22. Bxe6 {[%emt 0:00:09]} Kxe6 $11 {[%emt 0:00:04][%mdl 4096] Endgame KRR-KRR} 23. Rd3 {[%emt 0:01:21]} Rac8 {[%emt 0:02:49]} 24. c3 {[%emt 0:01:13]} Rhd8 {[%emt 0:00:17]} 25. Rad1 {[%emt 0:01:17]} Rxd3+ {[%emt 0:00:17]} 26. Rxd3 {[%emt 0:01:13] KR-KR} f5 {[%emt 0:08:06]} 27. Rd1 {[%emt 0:07:48]} b5 {[%emt 0:07:14]} 28. a3 {[%emt 0:14:24]} g5 {[%emt 0:09:14]} 29. h3 {[%emt 0:04:22]} a5 {[%emt 0:02:14]} 30. Ra1 {[%emt 0:03:22]} Rb8 {[%emt 0:04:56]} 31. Rd1 {[%emt 0:03:03]} Rg8 {[%emt 0:00:25]} 32. Ra1 {[%emt 0:11:38]} a4 {[%emt 0:07:37]} 33. Rd1 {[%emt 0:03:12]} Re8 {[%emt 0:05:37]} 34. Ke2 $1 {[%emt 0:01:07]} Rh8 {[%emt 0:02:13]} 35. Ke3 {[%emt 0:00:57]} Rg8 {[%emt 0:00:04]} 36. Ke2 {[%emt 0:02:20]} ({White should play} 36. Kf2 $15) 36... g4 $19 {[%emt 0:04:47]} 37. hxg4 {[%emt 0:00:06]} hxg4 {[%emt 0:00:08]} 38. fxg4 {[%emt 0:02:22]} Rxg4 {[%emt 0:00:06]} 39. Kf2 {[%emt 0:00:23] [#]} Rg8 {[%emt 0:00:34] Wards off Rd8} (39... Rg7 $1 $17 {[%cal Rg7d7] And now ...Rd7 would win.} 40. Rd8 Rd7 41. Re8+ Kd5) 40. Kf3 $2 {[%emt 0:00:30][%mdl 8192]} (40. g3 $1 $15) 40... e4+ {[%emt 0:02:08]} 41. Kf2 {[%emt 0:00:15] [#]} e3+ $2 {[%emt 0:00:38]} 42. Kf3 $1 $11 {[%emt 0:00:57] The position is equal.} Ke5 {[%emt 0:00:36]} 43. Rd7 {[%emt 0:00:28]} f4 {[%emt 0:00:25] ...Rg3+ would be deadly.} 44. Re7+ $1 {[%emt 0:00:33]} Kd6 {[%emt 0:00:14]} 45. Re4 {[%emt 0:00:26]} Rg3+ {[%emt 0:00:43]} 46. Kxf4 {[%emt 0:00:10]} Rxg2 {[%emt 0:00:05]} 47. Kxe3 {[%emt 0:00:48]} Rxb2 {[%emt 0:00:05]} 48. Rh4 {[%emt 0:00:34]} Rb3 {[%emt 0:01:23]} 49. Kd4 {[%emt 0:00:10]} Rxa3 {[%emt 0:00:14]} 50. Rh6+ {[%emt 0:00:22]} Kc7 {[%emt 0:00:06]} 51. Kc5 {[%emt 0:00:39]} Rb3 {[%emt 0:00:47]} 52. Rh7+ {[%emt 0:00:21]} Kc8 {[%emt 0:00:52]} 53. Ra7 {[%emt 0:00:56]} Kb8 {[%emt 0:00:09]} 54. Rh7 {[%emt 0:00:33]} a3 {[%emt 0:00:35]} 55. Kb6 {[%emt 0:00:27][%cal Rh7h8]} Kc8 {[%emt 0:00:56]} (55... Rxc3 $5 56. Rh8+ $8 Rc8 $11) 56. Rc7+ {[%emt 0:00:24]} Kd8 {[%emt 0:00:07]} 57. Ra7 {[%emt 0:00:27]} Kc8 {[%emt 0:00:25]} 58. Rc7+ {[%emt 0:00:05]} Kd8 {[%emt 0:00:08] Strongly threatening ...b4.} 59. Ra7 {[%emt 0:00:04]} Ke8 {[%emt 0:00:14]} 60. Kc5 {[%emt 0:00:48]} Rxc3+ {[%emt 0:01:12]} 61. Kxb5 {[%emt 0:00:13]} a2 {[%emt 0:00:11]} 62. Rxa2 {[%emt 0:00:06]} Rg3 {[%emt 0:00:08] Black had all chances to win.   Weighted Error Value: White=0.16 (very precise) /Black=0.08 (flawless)} 1/2-1/2

[Event "SixDays Budapest January-IMB 2023"]
[Site "Budapest"]
[Date "2023.01.25"]
[Round "5.2"]
[White "La Barbera, Manfredi"]
[Black "Semprun Martinez, Fernando"]
[Result "0-1"]
[ECO "B34"]
[WhiteElo "1961"]
[BlackElo "2106"]
[Annotator "TA"]
[PlyCount "108"]
[EventDate "2023.01.23"]
[EventType "tourn"]
[EventCountry "HUN"]
[SourceTitle "playchess.com"]
[Source "ChessBase"]
[SourceQuality "1"]
[TimeControl "5400+30"]

{[%evp 21,108,-16,-22,-30,-31,-33,0,0,-2,-36,-33,-81,-31,-38,-46,-59,-59,-60,-16,-23,-19,-48,-47,-91,-56,-63,-32,-32,-32,-64,-64,-64,-52,-64,-64,-64,-64,-63,-63,-70,-70,-70,-70,-497,-489,-633,-619,-588,-578,-739,-572,-6103,-648,-876,-799,-1268,-540,-503,0,-1144,-1017,-894,-895,-707,-670,-506,-189,-490,-194,-29963,-29954,-5704,-2707,-29975,-29976,-29972,-29973,-29973,-29974,-29973,-29974,-29976,-7839,-29985,-29976,-29976,-29977,-29974,-29975]} 1. e4 {[%emt 0:00:04]} c5 {[%emt 0:02:19]} 2. Nf3 {[%emt 0:00:09]} Nc6 {[%emt 0:00:01]} 3. Nc3 {[%emt 0:00:22]} g6 {[%emt 0:00:18]} 4. d4 {[%emt 0:00:16]} cxd4 {[%emt 0:00:01]} 5. Nxd4 {[%emt 0:00:11]} Bg7 {[%emt 0:00:08]} 6. Be3 {[%emt 0:00:08]} Nf6 {[%emt 0:00:04]} 7. Nxc6 {[%emt 0:00:29]} bxc6 {[%emt 0:00:45]} 8. e5 {[%emt 0:00:18]} Nd5 {[%emt 0:07:34]} 9. Nxd5 {[%emt 0:00:11]} cxd5 {[%emt 0:00:01]} 10. Qxd5 {[%emt 0:03:06]} Rb8 {[%emt 0:00:01]} 11. Bxa7 {[%emt 0:17:00] 11.0-0-0 is becoming the main line.} Rxb2 {[%emt 0:00:32]} 12. Bc4 {[%emt 0:06:43][%csl Gc4][%cal Rd5f7] B34: Sicilian: Accelerated Dragon with 5 Nc3: sidelines.} e6 {[%emt 0:02:11][%mdl 64] [#] Deflection} 13. Qd2 {[%emt 0:15:55] [#]} Qc7 $146 {[%emt 0:09:04]} (13... Bxe5 $5 {[%cal Rd8c7]} 14. Bd4 Qf6 $15) ({Predecessor:} 13... Bxe5 14. O-O Rb7 15. Bd4 Bxd4 16. Qxd4 O-O 17. Rfb1 d5 18. Bf1 Qa5 19. a4 Rxb1 20. Rxb1 {1-0 Speck,N (2185)-Love,A (2230) AUS-ch Melbourne 1997 (9)}) 14. Bd4 {[%emt 0:04:05] The position is equal.} Rb8 {[%emt 0:01:32]} 15. Bb3 {[%emt 0:06:08]} Bxe5 {[%emt 0:00:51]} 16. Rd1 {[%emt 0:17:47]} (16. h4 $15) 16... O-O {[%emt 0:05:09]} ({Better is} 16... Ba6 $17 17. Bxe5 Qxe5+ 18. Qe3 Qc7) 17. Bxe5 $15 {[%emt 0:01:33]} Qxe5+ {[%emt 0:00:03]} 18. Qe3 {[%emt 0:00:17]} Qxe3+ {[%emt 0:05:09]} 19. fxe3 {[%emt 0:00:14]} d5 {[%emt 0:00:23]} 20. Kf2 {[%emt 0:02:32]} Ba6 {[%emt 0:00:29]} 21. Kg3 {[%emt 0:01:47]} Rfc8 {[%emt 0:00:32]} 22. Kf4 {[%emt 0:01:40]} f6 {[%emt 0:10:17] Black is more active.} 23. Rhe1 {[%emt 0:04:15]} e5+ {[%emt 0:02:10]} 24. Kf3 {[%emt 0:01:16]} Bc4 {[%emt 0:01:23]} 25. Bxc4 {[%emt 0:01:03]} Rxc4 {[%emt 0:00:34]} 26. Rxd5 {[%emt 0:00:13]} Rxc2 {[%emt 0:00:12][%mdl 4096] Endgame KRR-KRR} 27. Re2 {[%emt 0:01:43] [#]} e4+ $1 {[%emt 0:01:56]} 28. Kf2 $1 {[%emt 0:02:08]} Rbb2 {[%emt 0:00:22][%csl LRa2,LRe2]} 29. Rd8+ {[%emt 0:00:39]} Kg7 {[%emt 0:00:15]} 30. Rd7+ {[%emt 0:00:17]} Kh6 {[%emt 0:00:22] Black keeps a firm grip on the game.} 31. Rxc2 {[%emt 0:00:07]} Rxc2+ {[%emt 0:00:05] KR-KR} 32. Kg3 $2 {[%emt 0:00:10][%mdl 8192]} ({White should try} 32. Kf1 $1 $15) 32... Rxa2 $19 {[%emt 0:00:20] ...f5 is the strong threat.} 33. Rf7 {[%emt 0:01:16]} f5 {[%emt 0:04:33]} 34. Rc7 {[%emt 0:00:28]} Re2 {[%emt 0:00:49]} 35. Rc3 {[%emt 0:00:05]} Kg5 {[%emt 0:00:33][%cal Oe2e3] ...Rxe3+! would be deadly.} 36. Ra3 {[%emt 0:01:00]} h6 {[%emt 0:00:35]} (36... Rxe3+ $142 37. Rxe3 f4+ 38. Kf2 fxe3+ 39. Kxe3 Kf5) 37. h4+ {[%emt 0:01:41]} Kh5 {[%emt 0:01:07] aiming for ...Re1.} 38. Rb3 {[%emt 0:01:18]} Rd2 {[%emt 0:01:35]} (38... Re1 $142 39. Rc3 Rh1) 39. Rb1 {[%emt 0:01:30]} Re2 {[%emt 0:01:27]} (39... Ra2 $142 40. Kh3 Ra3) 40. Rb3 $1 {[%emt 0:00:06]} Re1 {[%emt 0:00:55]} 41. Ra3 {[%emt 0:01:23]} Rd1 {[%emt 0:05:46]} 42. Ra6 {[%emt 0:01:29]} Rd3 {[%emt 0:00:52]} 43. Kf2 {[%emt 0:00:08]} g5 $2 {[%emt 0:00:48]} ({Stronger than} 43... Kxh4 44. Rxg6 Kh5 45. Rg8 $17) (43... Rb3 44. Ke2 Rb2+ 45. Kf1 Rb1+ 46. Kf2 Rh1) 44. Rf6 $2 {[%emt 0:01:10]} (44. hxg5 hxg5 45. Ke2) 44... Kxh4 $2 {[%emt 0:02:16]} ({Not} 44... gxh4 45. Rxf5+ Kg6 46. Rf4 $11) (44... Rd2+ 45. Kf1 Kxh4 46. Rxh6+ Kg4) 45. Rxf5 $2 {[%emt 0:00:15]} (45. Rxh6+ $19 Kg4 46. Rh8) 45... Rd2+ {[%emt 0:00:47]} 46. Kf1 {[%emt 0:00:07]} Kg3 {[%emt 0:00:49]} 47. Re5 {[%emt 0:00:34]} Rf2+ {[%emt 0:00:27]} 48. Ke1 {[%emt 0:00:16]} Rxg2 {[%emt 0:00:44]} 49. Rxe4 {[%emt 0:00:08]} Kf3 {[%emt 0:01:59]} 50. Re6 {[%emt 0:00:11]} h5 {[%emt 0:00:51]} 51. Kf1 {[%emt 0:01:28]} Rf2+ {[%emt 0:04:03]} (51... Rb2 $142 52. Rf6+ Kg3 53. Rf5 Kg4 54. Rf6 h4 55. Rh6 h3 56. Ke1 h2 57. Kd1 Kf3 58. Kc1 Ra2 59. Kb1 Re2 60. Kc1 g4 61. Kd1 Ra2 62. Kc1 Kg2 63. Rd6 h1=Q+ 64. Rd1 Rf2 65. Rxh1 Kxh1 66. Kd1 g3 67. Ke1 Ra2 68. Kf1 g2+ 69. Ke1 g1=Q#) 52. Kg1 {[%emt 0:00:16]} Re2 {[%emt 0:01:34] Black mates.} 53. Rf6+ {[%emt 0:01:17]} Kg3 {[%emt 0:01:34]} ({Worse is} 53... Kxe3 54. Rf5 $17) 54. Kf1 {[%emt 0:00:26]} Rxe3 {[%emt 0:00:26] Weighted Error Value: White=0.96/Black=0.64} 0-1

[Event "SixDays Budapest January-IMB 2023"]
[Site "Budapest"]
[Date "2023.01.25"]
[Round "5.3"]
[White "Gatineau, Yovann"]
[Black "Farkas, Gabor"]
[Result "1-0"]
[ECO "A45"]
[WhiteElo "2354"]
[BlackElo "2321"]
[Annotator "TA"]
[PlyCount "59"]
[EventDate "2023.01.23"]
[EventType "tourn"]
[EventCountry "HUN"]
[SourceTitle "playchess.com"]
[Source "ChessBase"]
[SourceQuality "1"]
[TimeControl "5400+30"]

{[%evp 14,59,74,80,101,58,62,82,77,25,52,41,152,43,121,102,156,152,148,129,130,137,252,206,292,274,471,474,529,520,744,744,749,722,1431,1289,1693,972,973,976,968,980,953,972,970,959,919,925]} 1. d4 {[%emt 0:00:13]} Nf6 {[%emt 0:00:31]} 2. Bf4 {[%emt 0:01:17]} d6 {[%emt 0:00:37]} 3. Nc3 {[%emt 0:00:11]} g6 {[%emt 0:06:37]} 4. e4 {[%emt 0:00:07]} Bg7 {[%emt 0:01:01]} 5. Qd2 {[%emt 0:00:07]} O-O {[%emt 0:07:18]} 6. O-O-O {[%emt 0:00:14]} a6 {[%emt 0:01:43]} 7. f3 {[%emt 0:01:29]} b5 {[%emt 0:00:30]} 8. Bh6 {[%emt 0:03:55]} b4 {[%emt 0:01:43] B07: Pirc Defence: Miscellaneous Systems.} 9. Nce2 {[%emt 0:00:25] And now h4 would win.} c5 $1 {[%emt 0:02:06]} 10. Bxg7 {[%emt 0:03:41]} Kxg7 {[%emt 0:00:07] White is better.} 11. Kb1 {[%emt 0:00:43] [#]} (11. dxc5 $16 {aiming for e5.} Qa5 12. cxd6) 11... Qb6 $146 {[%emt 0:04:30]} ({Predecessor:} 11... Qa5 12. Nc1 Nc6 13. d5 Na7 14. h4 h5 15. g4 hxg4 16. h5 Rh8 17. h6+ Kh7 18. fxg4 Bxg4 {1-0 Kauppila,O-Turunen,T Kajaani We KaSY op 1999 (1)}) 12. h4 {[%emt 0:05:11][%cal Oh4h5] Strongly threatening h5!} cxd4 {[%emt 0:02:31] Black is now going downhill.} ({Black should play} 12... h5 $14) 13. Nxd4 {[%emt 0:02:10]} (13. Qxd4 Qxd4 14. Nxd4 h5 $11) (13. h5 $1 $16 {[%cal Rh5g6]}) 13... e5 {[%emt 0:00:12]} (13... h5 $14) 14. Nb3 $16 {[%emt 0:03:45][%cal Bd4b3,Bb3c1,Bc1d3][%mdl 32]} Nc6 {[%emt 0:00:41]} ({Better is} 14... a5) 15. h5 $1 {[%emt 0:00:48] Hoping for hxg6.} (15. Qxd6 $2 Rd8 $19) 15... Nxh5 {[%emt 0:26:47]} 16. Ne2 {[%emt 0:06:23][%cal Og2g4] g4! is the strong threat.} (16. Qxd6 $2 Rd8 $19) 16... Qf2 {[%emt 0:09:58] [#]} 17. Nbc1 $1 {[%emt 0:04:18]} (17. Qxd6 $2 Rd8 18. Qxd8 Nxd8 19. Rxd8 Bb7 $19) 17... b3 {[%emt 0:10:55]} (17... Rg8 $16) 18. axb3 $18 {[%emt 0:01:03] Nd3 would be deadly.} ({Don't do} 18. Nxb3 $6 Kg8 19. Qg5 (19. Qxd6 Rd8 $15) 19... f6 $18) 18... Be6 {[%emt 0:01:20] [#]} (18... Rg8 {was called for.} 19. Nd3 (19. Qxd6 Rd8 $16) 19... Qa7) 19. Nd3 $1 {[%emt 0:01:22]} ({Weaker is} 19. Qxd6 Rfd8 20. Qxc6 Rac8 $17) 19... Qb6 {[%emt 0:00:12]} (19... Qa7 20. g4 Nf6 21. Qh6+ Kh8) 20. g4 {[%emt 0:01:03][%cal Bg2g4,Bg4g5][%mdl 32] White is clearly winning.} Nf6 {[%emt 0:00:21]} 21. Qh6+ {[%emt 0:00:44]} Kg8 {[%emt 0:01:13]} 22. g5 {[%emt 0:04:59]} Nh5 {[%emt 0:00:55] [#]} 23. Ng3 $1 {[%emt 0:00:20][%mdl 512]} Rfc8 {[%emt 0:01:18]} (23... Qc7 24. Nxh5) 24. Rxh5 {[%emt 0:01:07]} Nd4 {[%emt 0:00:07]} 25. Qxh7+ {[%emt 0:02:26]} Kf8 {[%emt 0:00:05]} 26. Qh8+ {[%emt 0:00:18]} Ke7 {[%emt 0:00:06]} 27. Qf6+ {[%emt 0:00:31]} Kd7 {[%emt 0:00:20] [#]} 28. Bh3 $1 {[%emt 0:00:58]} gxh5 {[%emt 0:03:59]} 29. Qxf7+ Kc6 {[%emt 0:00:03]} 30. Bxe6 {[%emt 0:00:24] Ingenious play by Gatineau!   Weighted Error Value: White=0.17 (very precise) /Black=0.60} 1-0